fUST/lending_fUST_20260117
["ID","MTS","AMOUNT","RATE_DAILY","PERIOD"]
[402361234,1768665045275,-642.77,0.00016438,3]
[402361235,1768665045284,-500.0,0.00016438,3]
[402361237,1768665045294,-641.28572861,0.00016438,3]
[402361239,1768665045304,-500.0,0.00016438,3]
[402361241,1768665045313,-1416.19,0.00016438,3]
[402361243,1768665045323,-500.0,0.00016438,3]
[402361246,1768665045333,-724.05,0.00016438,3]
[402361248,1768665045343,-500.0,0.00016438,3]
[402361250,1768665045352,-500.0,0.00016438,3]
[402361252,1768665045362,-500.0,0.00016438,3]
[402361253,1768665045371,-500.0,0.00016438,3]
[402361255,1768665045380,-1200.0,0.00016438,2]
[402361257,1768665045389,-931.48,0.00016438,3]
[402361259,1768665045399,-651.63,0.00016438,3]
[402361261,1768665045407,-500.0,0.00016438,3]
[402361263,1768665045415,-500.0,0.00016438,3]
[402361265,1768665045424,-500.0,0.00016438,3]
[402361267,1768665045434,-500.0,0.00016438,3]
[402361269,1768665045443,-500.0,0.00016438,3]
[402361271,1768665045452,-500.0,0.00016438,3]
[402361273,1768665045462,-328.64425098,0.00016438,3]
[402361275,1768665045472,-500.0,0.00016438,3]
[402361277,1768665045482,-500.0,0.00016438,3]
[402361279,1768665045492,-500.0,0.00016438,3]
[402361281,1768665045502,-500.0,0.00016438,3]
[402361283,1768665045512,-500.0,0.00016438,3]
[402361285,1768665045522,-500.0,0.00016438,3]
[402361287,1768665045532,-500.0,0.00016438,3]
[402361289,1768665045542,-500.0,0.00016438,3]
[402361290,1768665045552,-500.0,0.00016438,3]
[402361291,1768665045561,-500.0,0.00016438,3]
[402361292,1768665045570,-838.04,0.00016438,3]
[402361293,1768665045580,-500.0,0.00016438,3]
[402361294,1768665045589,-1203.39,0.00016438,3]
[402361295,1768665045598,-500.0,0.00016438,3]
[402361296,1768665045607,-500.0,0.00016438,3]
[402361297,1768665045616,-500.0,0.00016438,3]
[402361298,1768665045625,-482.47504826,0.00016438,3]
[402361299,1768665045635,-1225.26,0.00016438,3]
[402361300,1768665045644,-500.0,0.00016438,3]
[402361301,1768665045654,-1655.54,0.00016438,3]
[402361302,1768665045663,-500.0,0.00016438,3]
[402361303,1768665045672,-500.0,0.00016438,3]
[402361304,1768665045681,-1349.9,0.00016438,3]
[402361305,1768665045690,-879.31,0.00016438,3]
[402361306,1768665045699,-1359.78,0.00016438,3]
[402361307,1768665045708,-802.77,0.00016438,3]
[402361308,1768665045717,-500.0,0.00016438,3]
[402361309,1768665045727,-500.0,0.00016438,3]
[402361310,1768665045736,-512.79,0.00016438,3]
[402361311,1768665045745,-500.0,0.00016438,3]
[402361312,1768665045754,-776.66,0.00016438,3]
[402361313,1768665045763,-500.0,0.00016438,3]
[402361314,1768665045773,-500.0,0.00016438,3]
[402361315,1768665045782,-1201.85,0.00016438,3]
[402361316,1768665045791,-500.0,0.00016438,3]
[402361317,1768665045800,-500.0,0.00016438,3]
[402361318,1768665045809,-500.0,0.00016438,3]
[402361319,1768665045819,-500.0,0.00016438,3]
[402361320,1768665045828,-500.0,0.00016438,3]
[402361321,1768665045837,-500.0,0.00016438,3]
[402361322,1768665045846,-500.0,0.00016438,3]
[402361323,1768665045855,-500.0,0.00016438,3]
[402361324,1768665045864,-642.43,0.00016438,3]
[402361325,1768665045873,-500.0,0.00016438,3]
[402361326,1768665045883,-529.8,0.00016438,3]
[402361327,1768665045892,-500.0,0.00016438,3]
[402361328,1768665045901,-663.26,0.00016438,3]
[402361329,1768665045910,-1044.47,0.00016438,3]
[402361330,1768665045918,-500.0,0.00016438,3]
[402361331,1768665045929,-500.0,0.00016438,3]
[402361333,1768665045939,-500.0,0.00016438,3]
[402361335,1768665045948,-500.0,0.00016438,3]
[402361337,1768665045958,-500.0,0.00016438,3]
[402361339,1768665045969,-500.0,0.00016438,3]
[402361341,1768665045979,-500.0,0.00016438,3]
[402361343,1768665045989,-500.0,0.00016438,3]
[402361345,1768665045999,-500.0,0.00016438,3]
[402361347,1768665046008,-500.0,0.00016438,3]
[402361349,1768665046018,-762.86,0.00016438,3]
[402361370,1768665046218,-500.0,0.00016438,3]
[402361372,1768665046229,-500.0,0.00016438,3]
[402361374,1768665046239,-500.0,0.00016438,3]
[402361376,1768665046249,-500.0,0.00016438,3]
[402361378,1768665046258,-500.0,0.00016438,3]
[402361380,1768665046268,-500.0,0.00016438,3]
[402361382,1768665046277,-1273.35,0.00016438,3]
[402361384,1768665046287,-1426.15,0.00016438,3]
[402361386,1768665046296,-500.0,0.00016438,2]
[402361388,1768665046306,-1053.57,0.00016438,3]
[402361390,1768665046315,-500.0,0.00016438,3]
[402361392,1768665046324,-785.5,0.00016438,3]
[402361394,1768665046334,-500.0,0.00016438,3]
[402361396,1768665046344,-500.0,0.00016438,3]
[402361398,1768665046354,-1307.49,0.00016438,3]
[402361400,1768665046363,-1374.83,0.00016438,3]
[402361402,1768665046374,-1046.03,0.00016438,3]
[402361404,1768665046383,-500.0,0.00016438,3]
[402361406,1768665046393,-865.9,0.00016438,3]
[402361408,1768665046403,-500.0,0.00016438,3]
[402361410,1768665046411,-500.0,0.00016438,3]
[402361412,1768665046421,-500.0,0.00016438,3]
[402361414,1768665046431,-705.54,0.00016438,3]
[402361416,1768665046440,-500.0,0.00016438,3]
[402361418,1768665046450,-500.0,0.00016438,3]
[402361421,1768665046460,-500.0,0.00016438,3]
[402361424,1768665046469,-1083.52,0.00016438,3]
[402361426,1768665046479,-500.0,0.00016438,3]
[402361428,1768665046490,-500.0,0.00016438,3]
[402361430,1768665046500,-827.94,0.00016438,3]
[402361433,1768665046510,-500.0,0.00016438,3]
[402361436,1768665046520,-500.0,0.00016438,3]
[402361439,1768665046530,-638.81,0.00016438,3]
[402361441,1768665046539,-500.0,0.00016438,3]
[402361443,1768665046549,-500.0,0.00016438,3]
[402361445,1768665046558,-500.0,0.00016438,3]
[402361447,1768665046568,-500.0,0.00016438,3]
[402361449,1768665046578,-1199.62,0.00016438,3]
[402361451,1768665046587,-500.0,0.00016438,3]
[402361453,1768665046598,-500.0,0.00016438,3]
[402361455,1768665046607,-2826.08,0.00016438,3]
[402361457,1768665046617,-500.0,0.00016438,3]
[402361459,1768665046627,-500.0,0.00016438,3]
[402361461,1768665046636,-500.0,0.00016438,3]
[402361463,1768665046646,-471.92889685,0.00016438,3]
[402361465,1768665046655,-500.0,0.00016438,2]
[402361467,1768665046664,-1764.66,0.00016438,3]
[402361469,1768665046673,-500.0,0.00016438,3]
[402361471,1768665046682,-500.0,0.00016438,3]
[402361473,1768665046691,-500.0,0.00016438,3]
[402361475,1768665046701,-689.28,0.00016438,3]
[402361477,1768665046711,-638.22,0.00016438,3]
[402361479,1768665046720,-1235.58,0.00016438,3]
[402361481,1768665046730,-1012.74,0.00016438,3]
[402361483,1768665046740,-500.0,0.00016438,3]
[402361485,1768665046749,-1025.24,0.00016438,3]
[402361487,1768665046759,-500.0,0.00016438,3]
[402361489,1768665046769,-1666.18,0.00016438,3]
[402361491,1768665046779,-500.0,0.00016438,2]
[402361493,1768665046788,-1256.42,0.00016438,3]
[402361495,1768665046799,-606.7,0.00016438,3]
[402361497,1768665046809,-500.0,0.00016438,2]
[402361499,1768665046819,-629.0,0.00016478,2]
[402361501,1768665046829,-2147.0,0.00016478,2]
[402361503,1768665046839,-1367.0,0.00016478,2]
[402361505,1768665046848,-220.17009768,0.00016589,2]
[402361507,1768665046858,-293.56013023,0.00016589,2]
[402361509,1768665046868,-180.13149599,0.00016689,2]
[402361511,1768665046878,-151.0,0.00016712,3]
[402361513,1768665046887,-401.70931218,0.00016712,3]
[402361515,1768665046897,-500.0,0.00016712,3]
[402361517,1768665046907,-500.0,0.00016712,3]
[402361519,1768665046917,-1187.61,0.00016712,3]
[402361521,1768665046926,-500.0,0.00016712,3]
[402361523,1768665046936,-500.0,0.00016712,3]
[402361525,1768665046945,-516.47,0.00016712,3]
[402361527,1768665046955,-1470.66,0.00016712,3]
[402361529,1768665046964,-772.43,0.00016712,3]
[402361531,1768665046976,-500.0,0.00016712,3]
[402361533,1768665046986,-500.0,0.00016712,3]
[402361535,1768665046996,-500.0,0.00016712,3]
[402361537,1768665047006,-907.61,0.00016712,3]
[402361539,1768665047015,-516.76,0.00016712,3]
[402361541,1768665047025,-500.0,0.00016712,3]
[402361543,1768665047035,-629.3,0.00016712,3]
[402361545,1768665047045,-500.0,0.00016712,3]
[402361547,1768665047058,-500.0,0.00016712,3]
[402361549,1768665047068,-500.0,0.00016712,3]
[402361551,1768665047077,-1300.3,0.00016712,3]
[402361553,1768665047087,-500.0,0.00016712,3]
[402361555,1768665047096,-887.59,0.00016712,3]
[402361557,1768665047105,-500.0,0.00016712,3]
[402361559,1768665047115,-564.98156914,0.00016712,3]
[402361561,1768665047124,-578.72,0.00016712,3]
[402361563,1768665047134,-500.0,0.00016712,3]
[402361565,1768665047143,-500.0,0.00016712,3]
[402361567,1768665047152,-500.0,0.00016712,3]
[402361569,1768665047163,-500.0,0.00016712,3]
[402361571,1768665047172,-500.0,0.00016712,3]
[402361573,1768665047182,-699.03,0.00016712,3]
[402361575,1768665047192,-500.0,0.00016712,3]
[402361577,1768665047203,-722.18,0.00016712,3]
[402361579,1768665047212,-500.0,0.00016712,3]
[402361581,1768665047222,-869.07,0.00016712,3]
[402361583,1768665047231,-592.56,0.00016712,3]
[402361585,1768665047241,-500.0,0.00016712,3]
[402361588,1768665047251,-500.0,0.00016712,3]
[402361590,1768665047261,-500.0,0.00016712,3]
[402361592,1768665047271,-500.0,0.00016712,3]
[402361593,1768665047281,-500.0,0.00016712,3]
[402361596,1768665047291,-500.0,0.00016712,3]
[402361598,1768665047301,-500.0,0.00016712,3]
[402361600,1768665047311,-627.18,0.00016712,3]
[402361602,1768665047320,-596.89198935,0.00016712,3]
[402361604,1768665047330,-731.79,0.00016712,3]
[402361606,1768665047339,-500.0,0.00016712,3]
[402361608,1768665047349,-892.5,0.00016712,3]
[402361610,1768665047359,-529.21482368,0.00016712,3]
[402361612,1768665047368,-500.0,0.00016712,3]
[402361614,1768665047378,-864.48,0.00016712,3]
[402361616,1768665047387,-500.0,0.00016712,3]
[402361618,1768665047396,-500.0,0.00016712,3]
[402361620,1768665047406,-500.0,0.00016712,3]
[402361622,1768665047415,-500.0,0.00016712,3]
[402361624,1768665047425,-500.0,0.00016712,3]
[402361626,1768665047434,-500.0,0.00016712,3]
[402361628,1768665047443,-500.0,0.00016712,3]
[402361630,1768665047452,-500.0,0.00016712,3]
[402361632,1768665047462,-500.0,0.00016712,3]
[402361634,1768665047471,-1089.19,0.00016712,3]
[402361636,1768665047480,-500.0,0.00016712,3]
[402361638,1768665047490,-500.0,0.00016712,3]
[402361640,1768665047499,-500.0,0.00016712,3]
[402361642,1768665047510,-500.0,0.00016712,3]
[402361644,1768665047519,-500.0,0.00016712,3]
[402361646,1768665047529,-500.0,0.00016712,3]
[402361648,1768665047539,-500.0,0.00016712,3]
[402361650,1768665047549,-500.0,0.00016712,3]
[402361652,1768665047559,-500.0,0.00016712,3]
[402361654,1768665047568,-500.0,0.00016712,3]
[402361656,1768665047578,-1084.64,0.00016712,3]
[402361658,1768665047587,-500.0,0.00016712,3]
[402361660,1768665047597,-500.0,0.00016712,3]
[402361662,1768665047606,-500.0,0.00016712,3]
[402361664,1768665047616,-500.0,0.00016712,3]
[402361666,1768665047625,-500.0,0.00016712,3]
[402361668,1768665047635,-500.0,0.00016712,3]
[402361670,1768665047645,-500.0,0.00016712,3]
[402361672,1768665047655,-500.0,0.00016712,3]
[402361674,1768665047664,-500.0,0.00016712,3]
[402361676,1768665047674,-1000.0,0.00016712,2]
[402361678,1768665047683,-500.0,0.00016712,3]
[402361680,1768665047692,-500.0,0.00016712,3]
[402361682,1768665047702,-500.0,0.00016712,3]
[402361684,1768665047711,-649.38,0.00016712,3]
[402361686,1768665047721,-500.0,0.00016712,3]
[402361688,1768665047731,-861.11,0.00016712,3]
[402361690,1768665047741,-500.0,0.00016712,3]
[402361692,1768665047751,-500.0,0.00016712,3]
[402361694,1768665047760,-500.0,0.00016712,3]
[402361696,1768665047769,-500.0,0.00016712,3]
[402361698,1768665047778,-500.0,0.00016712,3]
[402361700,1768665047787,-544.6,0.00016712,3]
[402361702,1768665047795,-837.68,0.00016712,3]
[402361704,1768665047805,-500.0,0.00016712,3]
[402361706,1768665047815,-500.0,0.00016712,3]
[402361708,1768665047824,-551.67,0.00016712,3]
[402361710,1768665047832,-500.0,0.00016712,3]
[402361712,1768665047842,-500.0,0.00016712,3]
[402361715,1768665047852,-500.0,0.00016712,3]
[402361716,1768665047861,-500.0,0.00016712,3]
[402361719,1768665047872,-500.0,0.00016712,3]
[402361721,1768665047884,-500.0,0.00016712,3]
[402361723,1768665047896,-500.0,0.00016712,3]
[402361725,1768665047908,-500.0,0.00016712,3]
[402361728,1768665047920,-500.0,0.00016712,3]
[402361729,1768665047930,-1028.28,0.00016712,3]
[402361732,1768665047944,-674.48,0.00016712,3]
[402361734,1768665047954,-500.0,0.00016712,3]
[402361736,1768665047964,-500.0,0.00016712,3]
[402361738,1768665047976,-287.19905791,0.00016712,3]
[402361803,1768665048658,-425.73094209,0.00016712,3]
[402361805,1768665048668,-500.0,0.00016712,3]
[402361807,1768665048678,-500.0,0.00016712,3]
[402361809,1768665048687,-608.16905118,0.00016712,3]
[402361811,1768665048697,-472.41430431,0.00016712,3]
[402361813,1768665048706,-500.0,0.00016712,3]
[402361815,1768665048715,-500.0,0.00016712,3]
[402361817,1768665048725,-923.59,0.00016712,3]
[402361819,1768665048734,-500.0,0.00016712,3]
[402361821,1768665048743,-500.0,0.00016712,3]
[402361823,1768665048752,-500.0,0.00016712,3]
[402361825,1768665048761,-500.0,0.00016712,3]
[402361827,1768665048770,-500.0,0.00016712,3]
[402361829,1768665048779,-500.0,0.00016712,3]
[402361831,1768665048788,-500.0,0.00016712,3]
[402361833,1768665048797,-500.0,0.00016712,3]
[402361835,1768665048806,-500.0,0.00016712,3]
[402361837,1768665048815,-500.0,0.00016712,3]
[402361839,1768665048825,-577.06010891,0.00016712,3]
[402361841,1768665048834,-617.43587181,0.00016712,3]
[402361843,1768665048843,-500.0,0.00016712,3]
[402361845,1768665048852,-969.59,0.00016712,3]
[402361847,1768665048861,-605.38,0.00016712,3]
[402361849,1768665048870,-658.11,0.00016712,3]
[402361851,1768665048879,-683.64,0.00016712,3]
[402361853,1768665048888,-500.0,0.00016712,3]
[402361855,1768665048897,-500.0,0.00016712,3]
[402361857,1768665048907,-500.0,0.00016712,3]
[402361859,1768665048915,-500.0,0.00016712,3]
[402361861,1768665048926,-500.0,0.00016712,3]
[402361862,1768665048935,-500.0,0.00016712,3]
[402361864,1768665048944,-500.0,0.00016712,3]
[402361867,1768665048954,-500.0,0.00016712,3]
[402361868,1768665048963,-500.0,0.00016712,3]
[402361870,1768665048977,-569.47706073,0.00016712,3]
[402361872,1768665048986,-500.0,0.00016712,3]
[402361875,1768665048995,-1398.34,0.00016712,3]
[402361877,1768665049004,-500.0,0.00016712,3]
[402361878,1768665049014,-500.0,0.00016712,3]
[402361881,1768665049024,-716.18,0.00016712,3]
[402361883,1768665049034,-500.0,0.00016712,3]
[402361884,1768665049043,-616.4,0.00016712,3]
[402361886,1768665049054,-500.0,0.00016712,3]
[402361888,1768665049063,-500.0,0.00016712,3]
[402361890,1768665049072,-1463.39,0.00016712,3]
[402361892,1768665049082,-500.0,0.00016712,3]
[402361894,1768665049091,-1233.39,0.00016712,3]
[402361896,1768665049100,-971.01,0.00016712,3]
[402361898,1768665049109,-500.0,0.00016712,3]
[402361900,1768665049119,-500.0,0.00016712,3]
[402361902,1768665049129,-500.0,0.00016712,3]
[402361904,1768665049138,-789.05,0.00016712,3]
[402361906,1768665049148,-500.0,0.00016712,3]
[402361908,1768665049156,-168.23320526,0.00016712,3]
[402361910,1768665049164,-500.0,0.00016712,3]
[402361912,1768665049173,-500.0,0.00016712,3]
[402361914,1768665049182,-500.0,0.00016712,3]
[402361916,1768665049191,-500.0,0.00016712,3]
[402361918,1768665049201,-500.0,0.00016712,3]
[402361920,1768665049210,-580.49,0.00016712,3]
[402361922,1768665049219,-500.0,0.00016712,3]
[402361924,1768665049230,-674.43,0.00016712,3]
[402361926,1768665049239,-500.0,0.00016712,3]
[402361928,1768665049248,-500.0,0.00016712,3]
[402361930,1768665049258,-1550.06,0.00016712,3]
[402361932,1768665049267,-500.0,0.00016712,3]
[402361934,1768665049276,-500.0,0.00016712,3]
[402361936,1768665049285,-1519.5,0.00016712,3]
[402361938,1768665049294,-578.0,0.00016712,3]
[402361940,1768665049303,-500.0,0.00016712,3]
[402361942,1768665049312,-500.0,0.00016712,3]
[402361944,1768665049322,-500.0,0.00016712,3]
[402361946,1768665049332,-500.0,0.00016712,3]
[402361948,1768665049341,-500.0,0.00016712,3]
[402361950,1768665049349,-1593.51,0.00016712,3]
[402361952,1768665049358,-771.45,0.00016712,3]
[402361954,1768665049367,-500.0,0.00016712,3]
[402361956,1768665049376,-500.46,0.00016712,3]
[402361958,1768665049385,-50.80945571,0.00016712,3]
[402361994,1768665049708,-500.0,0.00016438,3]
[402361996,1768665049719,-1414.06054429,0.00016712,3]
[402361998,1768665049728,-766.62,0.00016712,3]
[402362000,1768665049738,-533.11445004,0.00016712,3]
[402362002,1768665049747,-500.0,0.00016712,3]
[402362004,1768665049756,-828.37,0.00016712,3]
[402362006,1768665049765,-500.0,0.00016712,3]
[402362008,1768665049774,-1407.26,0.00016712,3]
[402362010,1768665049783,-581.95,0.00016712,3]
[402362011,1768665049793,-500.0,0.00016712,3]
[402362013,1768665049802,-500.0,0.00016712,3]
[402362015,1768665049812,-500.0,0.00016712,3]
[402362018,1768665049822,-500.0,0.00016712,3]
[402362020,1768665049832,-784.74,0.00016712,3]
[402362021,1768665049842,-1189.96,0.00016712,3]
[402362024,1768665049853,-500.0,0.00016712,3]
[402362026,1768665049863,-648.5,0.00016712,3]
[402362027,1768665049872,-854.05,0.00016712,3]
[402362029,1768665049881,-500.0,0.00016712,3]
[402362031,1768665049891,-500.0,0.00016712,3]
[402362033,1768665049900,-674.01,0.00016712,3]
[402362035,1768665049909,-500.0,0.00016712,3]
[402362037,1768665049919,-801.02,0.00016712,3]
[402362040,1768665049928,-1135.8,0.00016712,3]
[402362042,1768665049938,-519.74,0.00016712,3]
[402362044,1768665049951,-500.0,0.00016712,3]
[402362046,1768665049961,-500.0,0.00016712,3]
[402362047,1768665049971,-500.0,0.00016712,3]
[402362050,1768665049983,-500.0,0.00016712,3]
[402362052,1768665049993,-500.0,0.00016712,3]
[402362054,1768665050003,-1260.5,0.00016712,3]
[402362055,1768665050012,-500.0,0.00016712,3]
[402362057,1768665050023,-500.0,0.00016712,3]
[402362060,1768665050033,-1943.18,0.00016712,3]
[402362062,1768665050044,-500.0,0.00016712,3]
[402362063,1768665050054,-500.0,0.00016712,3]
[402362066,1768665050063,-710.33,0.00016712,3]
[402362067,1768665050073,-1124.78023563,0.00016712,3]
[402362116,1768665050522,-500.0,0.00016438,3]
[402362118,1768665050532,-8.90976437,0.00016712,3]
[402362120,1768665050542,-500.0,0.00016712,3]
[402362122,1768665050552,-214.48714005,0.00016712,3]
[402362124,1768665050562,-113.98401058,0.00016712,3]
[402362150,1768665050806,-386.01598942,0.00016712,3]
[402362152,1768665050815,-158.53,0.00016712,3]
[402362154,1768665050824,-1000.0,0.00016712,2]
[402362156,1768665050833,-500.0,0.00016712,3]
[402362158,1768665050843,-500.0,0.00016712,3]
[402362160,1768665050852,-500.0,0.00016712,3]
[402362162,1768665050863,-500.0,0.00016712,3]
[402362164,1768665050872,-500.0,0.00016712,3]
[402362166,1768665050882,-500.0,0.00016712,3]
[402362168,1768665050891,-500.0,0.00016712,3]
[402362170,1768665050901,-1443.0,0.00016712,3]
[402362172,1768665050910,-1176.79,0.00016712,3]
[402362174,1768665050920,-612.26,0.00016712,3]
[402362176,1768665050929,-500.0,0.00016712,3]
[402362178,1768665050939,-500.0,0.00016712,3]
[402362180,1768665050948,-500.0,0.00016712,3]
[402362182,1768665050957,-500.0,0.00016712,3]
[402362184,1768665050967,-876.16,0.00016712,3]
[402362186,1768665050982,-754.06,0.00016712,3]
[402362188,1768665050991,-500.0,0.00016712,3]
[402362190,1768665051000,-500.0,0.00016712,3]
[402362192,1768665051010,-500.0,0.00016712,3]
[402362194,1768665051019,-1091.91,0.00016712,3]
[402362196,1768665051028,-500.0,0.00016712,3]
[402362198,1768665051038,-1585.84,0.00016712,3]
[402362200,1768665051050,-931.21,0.00016712,3]
[402362202,1768665051060,-500.0,0.00016712,3]
[402362204,1768665051070,-500.0,0.00016712,3]
[402362206,1768665051080,-2031.19,0.00016712,3]
[402362208,1768665051089,-500.0,0.00016712,3]
[402362210,1768665051098,-1635.0,0.00016712,3]
[402362212,1768665051108,-500.0,0.00016712,3]
[402362214,1768665051117,-1036.06,0.00016712,3]
[402362216,1768665051127,-500.0,0.00016712,3]
[402362218,1768665051136,-500.0,0.00016712,3]
[402362220,1768665051146,-500.0,0.00016712,3]
[402362222,1768665051156,-500.0,0.00016712,3]
[402362224,1768665051165,-500.0,0.00016712,3]
[402362226,1768665051175,-500.0,0.00016712,3]
[402362228,1768665051184,-500.0,0.00016712,3]
[402362230,1768665051194,-500.0,0.00016712,3]
[402362232,1768665051203,-500.0,0.00016712,3]
[402362234,1768665051212,-500.0,0.00016712,3]
[402362236,1768665051221,-698.53,0.00016712,3]
[402362238,1768665051230,-500.0,0.00016712,3]
[402362240,1768665051240,-500.0,0.00016712,3]
[402362242,1768665051249,-500.0,0.00016712,3]
[402362244,1768665051258,-500.0,0.00016712,3]
[402362246,1768665051268,-247.25068519,0.00016712,3]
[402362248,1768665051277,-645.37,0.00016712,3]
[402362250,1768665051286,-500.0,0.00016712,3]
[402362252,1768665051298,-500.0,0.00016712,3]
[402362254,1768665051307,-500.0,0.00016712,3]
[402362256,1768665051316,-512.85,0.00016712,3]
[402362258,1768665051325,-500.0,0.00016712,3]
[402362260,1768665051334,-500.0,0.00016712,3]
[402362263,1768665051344,-500.0,0.00016712,3]
[402362264,1768665051353,-500.0,0.00016712,3]
[402362267,1768665051363,-500.0,0.00016712,3]
[402362268,1768665051372,-500.0,0.00016712,3]
[402362271,1768665051382,-1227.37,0.00016712,3]
[402362273,1768665051391,-304.89462711,0.00016712,3]
[402362275,1768665051401,-500.0,0.00016712,3]
[402362276,1768665051410,-500.0,0.00016712,3]
[402362278,1768665051419,-1020.11,0.00016712,3]
[402362280,1768665051428,-500.0,0.00016712,3]
[402362282,1768665051437,-500.0,0.00016712,3]
[402362284,1768665051446,-500.0,0.00016712,3]
[402362286,1768665051456,-500.0,0.00016712,3]
[402362288,1768665051466,-500.0,0.00016712,3]
[402362290,1768665051476,-668.7,0.00016712,3]
[402362292,1768665051486,-557.47,0.00016712,3]
[402362294,1768665051495,-1205.78,0.00016712,3]
[402362296,1768665051504,-694.18,0.00016712,3]
[402362298,1768665051514,-574.46,0.00016712,3]
[402362300,1768665051524,-980.16,0.00016712,3]
[402362302,1768665051533,-500.0,0.00016712,3]
[402362304,1768665051543,-567.65106123,0.00016712,3]
[402362306,1768665051553,-151.0,0.00016712,2]
[402362308,1768665051562,-1016.99,0.00016712,3]
[402362311,1768665051573,-500.0,0.00016712,3]
[402362313,1768665051583,-1414.0,0.00016712,3]
[402362315,1768665051592,-500.0,0.00016712,3]
[402362317,1768665051601,-1232.41,0.00016712,3]
[402362319,1768665051610,-1680.3,0.00016712,3]
[402362321,1768665051619,-500.0,0.00016712,3]
[402362323,1768665051629,-575.46,0.00016712,3]
[402362324,1768665051638,-500.0,0.00016712,3]
[402362327,1768665051647,-970.01,0.00016712,3]
[402362329,1768665051657,-682.78,0.00016712,3]
[402362331,1768665051666,-991.54,0.00016712,3]
[402362333,1768665051677,-569.3,0.00016712,3]
[402362335,1768665051686,-500.0,0.00016712,3]
[402362337,1768665051696,-500.0,0.00016712,3]
[402362339,1768665051705,-500.0,0.00016712,3]
[402362341,1768665051715,-500.0,0.00016712,3]
[402362343,1768665051724,-500.0,0.00016712,3]
[402362345,1768665051734,-500.0,0.00016712,3]
[402362347,1768665051743,-500.0,0.00016712,3]
[402362349,1768665051752,-500.0,0.00016712,3]
[402362351,1768665051761,-1204.34,0.00016712,3]
[402362353,1768665051770,-500.0,0.00016712,3]
[402362355,1768665051780,-500.0,0.00016712,3]
[402362357,1768665051789,-500.0,0.00016712,3]
[402362359,1768665051799,-699.29,0.00016712,3]
[402362361,1768665051808,-500.0,0.00016712,3]
[402362363,1768665051818,-500.0,0.00016712,3]
[402362365,1768665051827,-526.65404558,0.00016712,3]
[402362367,1768665051837,-599.08,0.00016712,3]
[402362369,1768665051846,-844.47,0.00016712,3]
[402362372,1768665051856,-500.0,0.00016712,3]
[402362373,1768665051866,-500.0,0.00016712,3]
[402362376,1768665051875,-500.0,0.00016712,3]
[402362378,1768665051884,-1267.79,0.00016712,3]
[402362380,1768665051894,-500.0,0.00016712,3]
[402362381,1768665051903,-500.0,0.00016712,3]
[402362383,1768665051913,-779.7,0.00016712,3]